[Event "8th Mersin Open 2024"]
[Site "Mersin"]
[Date "2024.11.14"]
[Round "7"]
[White "Akcay, Batin"]
[Black "Dere, Ali Mete"]
[Result "0-1"]
[ECO "C56"]
[WhiteElo "1573"]
[BlackElo "1550"]
[Annotator "NA RC"]
[PlyCount "125"]
[EventDate "2024.11.10"]
[EventType "swiss"]
[EventCountry "TUR"]
[SourceTitle "playchess.com"]
[Source "ChessBase"]
[SourceQuality "1"]
[TimeControl "5400+30"]

1. e4 {[%emt 0:01:00]} e5 {[%emt 0:01:00]} 2. Nf3 {[%emt 0:00:30]} Nc6 {[%emt 0:00:30]} 3. d4 {[%emt 0:00:00]} exd4 {[%emt 0:00:00]} 4. Bc4 {[%emt 0:00:00]} Nf6 {[%emt 0:00:00]} 5. e5 {[%emt 0:00:30]} d5 {[%emt 0:00:00]} 6. Bb5 {[%emt 0:00:30]} Ne4 {[%emt 0:00:00]} 7. Nxd4 {[%emt 0:00:30]} Bd7 {[%emt 0:00:30]} 8. Bxc6 {[%emt 0:00:30]} bxc6 {[%emt 0:00:30]} 9. Nc3 {[%emt 0:00:00]} Bb4 {[%emt 0:01:30]} 10. O-O {[%emt 0:01:00]} Nxc3 {[%emt 0:06:30]} 11. bxc3 {[%emt 0:00:30]} Bxc3 {[%emt 0:01:30]} 12. Rb1 {[%emt 0:00:00]} Ba5 {[%emt 0:05:30]} 13. Ba3 {[%emt 0:01:00]} Bb6 {[%emt 0:01:30]} 14. e6 {[%emt 0:01:30]} Bxe6 {[%emt 0:02:30]} 15. Nxe6 {[%emt 0:01:30]} fxe6 {[%emt 0:00:30]} 16. Qh5+ {[%emt 0:00:30]} Kd7 {[%emt 0:00:30]} 17. Qf7+ {[%emt 0:00:30]} Kc8 {[%emt 0:00:30]} 18. Qxe6+ {[%emt 0:00:30]} Kb7 {[%emt 0:00:30]} 19. Qg4 {[%emt 0:00:30]} Qc8 {[%emt 0:06:30]} 20. Qg3 {[%emt 0:01:30]} Qf5 {[%emt 0:06:30]} 21. Rbc1 {[%emt 0:01:30]} h5 {[%emt 0:03:30]} 22. c4 {[%emt 0:01:30]} h4 {[%emt 0:00:30]} 23. Qb3 {[%emt 0:00:00]} dxc4 {[%emt 0:01:30]} 24. Qxc4 {[%emt 0:01:00]} Qd5 {[%emt 0:00:30]} 25. Qxd5 {[%emt 0:02:30]} cxd5 {[%emt 0:00:30]} 26. Rfd1 {[%emt 0:00:00]} Rad8 {[%emt 0:02:30]} 27. Rc3 {[%emt 0:00:00]} Rhe8 {[%emt 0:02:30]} 28. Kf1 {[%emt 0:02:30]} Re6 {[%emt 0:02:30]} 29. Rf3 {[%emt 0:02:30]} Rd7 {[%emt 0:03:30]} 30. Bb2 {[%emt 0:04:30]} Re4 {[%emt 0:16:30]} 31. Rfd3 {[%emt 0:01:30]} c6 {[%emt 0:00:30]} 32. h3 {[%emt 0:13:30]} d4 {[%emt 0:05:30]} 33. f3 {[%emt 0:02:30]} Re6 {[%emt 0:00:00]} 34. a4 {[%emt 0:01:30]} c5 {[%emt 0:01:00]} 35. Rb3 {[%emt 0:00:30]} a5 {[%emt 0:07:30]} 36. Rb5 {[%emt 0:01:30]} Ka6 {[%emt 0:01:30]} 37. Ba3 {[%emt 0:05:30]} Rc6 {[%emt 0:01:30]} 38. Ke2 {[%emt 0:00:30]} c4 {[%emt 0:01:59]} 39. Rc1 {[%emt 0:07:30]} d3+ {[%emt 0:00:40]} 40. Kd2 {[%emt 0:00:30]} c3+ {[%emt 0:00:06]} 41. Rxc3 {[%emt 0:15:30]} Rxc3 {[%emt 0:00:37]} 42. Kxc3 {[%emt 0:00:30]} d2 {[%emt 0:00:30]} 43. Rb1 {[%emt 0:00:30]} d1=Q {[%emt 0:00:30]} 44. Rxd1 {[%emt 0:00:30]} Rxd1 {[%emt 0:00:30]} 45. Bf8 {[%emt 0:00:30]} Rg1 {[%emt 0:00:30]} 46. Bxg7 {[%emt 0:00:30]} Rxg2 {[%emt 0:00:30]} 47. Bf6 {[%emt 0:00:30]} Rg3 {[%emt 0:00:30]} 48. Bxh4 {[%emt 0:00:30]} Rxf3+ {[%emt 0:00:30]} 49. Kc2 {[%emt 0:00:30]} Rxh3 {[%emt 0:00:30]} 50. Bf6 {[%emt 0:00:30]} Ra3 {[%emt 0:00:30]} 51. Be7 {[%emt 0:00:30]} Rxa4 {[%emt 0:00:30]} 52. Kb3 {[%emt 0:00:30]} Re4 {[%emt 0:00:30]} 53. Bg5 {[%emt 0:00:30]} a4+ {[%emt 0:00:30]} 54. Kc2 {[%emt 0:00:30]} Kb5 {[%emt 0:00:30]} 55. Bf6 {[%emt 0:00:30]} Kc4 {[%emt 0:00:30]} 56. Kd2 {[%emt 0:00:30]} a3 {[%emt 0:00:30]} 57. Bg7 {[%emt 0:00:30]} Bd4 {[%emt 0:00:30]} 58. Bxd4 {[%emt 0:00:30]} Rxd4+ {[%emt 0:00:30]} 59. Ke3 {[%emt 0:00:30]} a2 {[%emt 0:00:30]} 60. Kf3 {[%emt 0:00:30]} a1=Q {[%emt 0:00:30]} 61. Kg3 {[%emt 0:00:30]} Qf1 {[%emt 0:00:30]} 62. Kh2 {[%emt 0:00:30]} Qf2+ {[%emt 0:00:00]} 63. Kh1 {[%emt 0:07:30]} 0-1

[Event "8th Mersin Open 2024"]
[Site "Mersin"]
[Date "2024.11.14"]
[Round "7"]
[White "Kilic, Kerem Ege"]
[Black "Sahin, Mert"]
[Result "1-0"]
[ECO "C11"]
[WhiteElo "1571"]
[BlackElo "1534"]
[Annotator "NA RC"]
[PlyCount "69"]
[EventDate "2024.11.10"]
[EventType "swiss"]
[EventCountry "TUR"]
[SourceTitle "playchess.com"]
[Source "ChessBase"]
[SourceQuality "1"]
[TimeControl "5400+30"]

1. e4 {[%emt 0:01:00]} e6 {[%emt 0:01:00]} 2. d4 {[%emt 0:00:30]} d5 {[%emt 0:00:30]} 3. Nc3 {[%emt 0:00:30]} Nf6 {[%emt 0:00:00]} 4. e5 {[%emt 0:00:00]} Nfd7 {[%emt 0:00:00]} 5. Nce2 {[%emt 0:00:00]} c5 {[%emt 0:00:00]} 6. c3 {[%emt 0:00:30]} Nc6 {[%emt 0:00:00]} 7. f4 {[%emt 0:00:00]} Qb6 {[%emt 0:01:30]} 8. Nf3 {[%emt 0:00:00]} f6 {[%emt 0:00:00]} 9. a3 {[%emt 0:00:00]} fxe5 {[%emt 0:00:00]} 10. fxe5 {[%emt 0:00:00]} Be7 {[%emt 0:00:00]} 11. Ng3 {[%emt 0:02:30]} O-O {[%emt 0:00:00]} 12. Be2 {[%emt 0:00:30]} cxd4 {[%emt 0:00:30]} 13. cxd4 {[%emt 0:01:30]} a6 {[%emt 0:02:30]} 14. b4 {[%emt 0:02:30]} Qa7 {[%emt 0:08:30]} 15. Qd3 {[%emt 0:19:30]} Rxf3 {[%emt 0:07:30]} 16. gxf3 {[%emt 0:12:30]} Nxd4 {[%emt 0:00:00]} 17. Bb2 {[%emt 0:01:30]} Nc6 {[%emt 0:01:00]} 18. f4 {[%emt 0:03:30]} Bh4 {[%emt 0:02:30]} 19. O-O-O {[%emt 0:03:30]} Nf8 {[%emt 0:02:30]} 20. Rhg1 {[%emt 0:07:30]} Ng6 {[%emt 0:00:30]} 21. Nh5 {[%emt 0:09:30]} Bf2 {[%emt 0:01:30]} 22. Rg2 {[%emt 0:00:30]} Nce7 {[%emt 0:02:30]} 23. Kb1 {[%emt 0:07:30]} Nf5 {[%emt 0:03:30]} 24. Ka2 {[%emt 0:03:30]} Bd7 {[%emt 0:02:30]} 25. Qf3 {[%emt 0:04:30]} Bb6 {[%emt 0:01:30]} 26. Bd3 {[%emt 0:02:52]} Bb5 {[%emt 0:04:30]} 27. Bxf5 {[%emt 0:00:30]} Bc4+ {[%emt 0:00:00]} 28. Ka1 {[%emt 0:00:15]} exf5 {[%emt 0:00:00]} 29. Rxd5 {[%emt 0:01:02]} Re8 {[%emt 0:04:30]} 30. Rd7 {[%emt 0:01:30]} Bf7 {[%emt 0:00:00]} 31. e6 {[%emt 0:01:40]} Rxe6 {[%emt 0:00:00]} 32. Qc3 {[%emt 0:00:30]} Bd4 {[%emt 0:00:30]} 33. Rxd4 {[%emt 0:02:10]} Ne5 {[%emt 0:01:30]} 34. Rd8+ {[%emt 0:00:30]} Be8 {[%emt 0:00:30]} 35. Nxg7 {[%emt 0:02:03]} 1-0

[Event "8th Mersin Open 2024"]
[Site "Mersin"]
[Date "2024.11.14"]
[Round "7"]
[White "Sadigov, Kamil"]
[Black "Alim, Mehmet Emir"]
[Result "0-1"]
[ECO "B22"]
[WhiteElo "1565"]
[BlackElo "1532"]
[Annotator "NA RC"]
[PlyCount "82"]
[EventDate "2024.11.10"]
[EventType "swiss"]
[EventCountry "TUR"]
[SourceTitle "playchess.com"]
[Source "ChessBase"]
[SourceQuality "1"]
[TimeControl "5400+30"]

1. e4 {[%emt 0:01:00]} c5 {[%emt 0:01:00]} 2. c3 {[%emt 0:00:30]} d5 {[%emt 0:00:00]} 3. exd5 {[%emt 0:00:30]} Qxd5 {[%emt 0:00:00]} 4. d4 {[%emt 0:00:00]} Nf6 {[%emt 0:00:00]} 5. Nf3 {[%emt 0:00:00]} Bg4 {[%emt 0:01:00]} 6. Be2 {[%emt 0:00:30]} e6 {[%emt 0:00:30]} 7. O-O {[%emt 0:00:30]} Nc6 {[%emt 0:00:00]} 8. Be3 {[%emt 0:00:00]} cxd4 {[%emt 0:00:00]} 9. cxd4 {[%emt 0:01:00]} a6 {[%emt 0:02:30]} 10. Nc3 {[%emt 0:00:30]} Qd6 {[%emt 0:00:30]} 11. a3 {[%emt 0:02:30]} Be7 {[%emt 0:01:30]} 12. h3 {[%emt 0:01:30]} Bf5 {[%emt 0:02:30]} 13. Rc1 {[%emt 0:04:30]} O-O {[%emt 0:01:30]} 14. b4 {[%emt 0:02:30]} b5 {[%emt 0:03:30]} 15. Qd2 {[%emt 0:00:00]} Nd5 {[%emt 0:12:30]} 16. Nxd5 {[%emt 0:04:00]} Qxd5 {[%emt 0:00:30]} 17. Rc3 {[%emt 0:00:30]} a5 {[%emt 0:00:30]} 18. Rfc1 {[%emt 0:00:30]} axb4 {[%emt 0:03:30]} 19. Rxc6 {[%emt 0:08:30]} bxa3 {[%emt 0:00:30]} 20. R6c2 {[%emt 0:18:30]} Bxc2 {[%emt 0:00:30]} 21. Qxc2 {[%emt 0:00:30]} b4 {[%emt 0:03:30]} 22. Bc4 {[%emt 0:00:00]} Qc6 {[%emt 0:00:30]} 23. Ne5 {[%emt 0:00:00]} Qd6 {[%emt 0:00:30]} 24. Qb3 {[%emt 0:01:30]} Bf6 {[%emt 0:02:30]} 25. f4 {[%emt 0:01:30]} a2 {[%emt 0:01:30]} 26. Ra1 {[%emt 0:01:30]} Ra3 {[%emt 0:00:30]} 27. Rxa2 {[%emt 0:09:30]} Rxb3 {[%emt 0:00:30]} 28. Bxb3 {[%emt 0:00:00]} Bxe5 {[%emt 0:00:30]} 29. fxe5 {[%emt 0:00:00]} Qc6 {[%emt 0:00:00]} 30. Rc2 {[%emt 0:00:30]} Qe4 {[%emt 0:01:00]} 31. Kf2 {[%emt 0:00:30]} Qd3 {[%emt 0:06:30]} 32. Rb2 {[%emt 0:00:30]} Qc3 {[%emt 0:01:30]} 33. Rb1 {[%emt 0:00:30]} f6 {[%emt 0:00:00]} 34. Bxe6+ {[%emt 0:00:00]} Kh8 {[%emt 0:00:00]} 35. Rb3 {[%emt 0:01:00]} fxe5+ {[%emt 0:00:30]} 36. Kg1 {[%emt 0:01:30]} Qe1+ {[%emt 0:00:30]} 37. Kh2 {[%emt 0:00:00]} exd4 {[%emt 0:22:30]} 38. Bxd4 {[%emt 0:25:04]} Qxe6 {[%emt 0:01:30]} 39. Rg3 {[%emt 0:00:53]} Qf7 {[%emt 0:00:30]} 40. Rf3 {[%emt 0:00:30]} Qc7+ {[%emt 0:00:30]} 41. Rg3 {[%emt 0:00:30]} Rg8 {[%emt 0:00:30]} 0-1

[Event "8th Mersin Open 2024"]
[Site "Mersin"]
[Date "2024.11.14"]
[Round "7"]
[White "Shiraliyev, Muslim"]
[Black "Yaglioglu, Batuhan Alp"]
[Result "1-0"]
[ECO "B01"]
[WhiteElo "1520"]
[BlackElo "1599"]
[Annotator "NA RC"]
[PlyCount "83"]
[EventDate "2024.11.10"]
[EventType "swiss"]
[EventCountry "TUR"]
[SourceTitle "playchess.com"]
[Source "ChessBase"]
[SourceQuality "1"]
[TimeControl "5400+30"]

1. e4 {[%emt 0:01:00]} d5 {[%emt 0:02:00]} 2. exd5 {[%emt 0:00:30]} Nf6 {[%emt 0:00:30]} 3. Nf3 {[%emt 0:00:00]} Nxd5 {[%emt 0:00:30]} 4. Bc4 {[%emt 0:07:00]} Nb6 {[%emt 0:00:30]} 5. Bb3 {[%emt 0:00:30]} c5 {[%emt 0:00:00]} 6. c3 {[%emt 0:03:30]} Nc6 {[%emt 0:12:00]} 7. d4 {[%emt 0:03:30]} cxd4 {[%emt 0:01:30]} 8. cxd4 {[%emt 0:01:30]} e6 {[%emt 0:24:30]} 9. O-O {[%emt 0:02:30]} Nb4 {[%emt 0:12:30]} 10. Bg5 {[%emt 0:02:30]} Be7 {[%emt 0:06:30]} 11. Bxe7 {[%emt 0:00:30]} Qxe7 {[%emt 0:00:00]} 12. Re1 {[%emt 0:02:30]} N4d5 {[%emt 0:08:00]} 13. Nc3 {[%emt 0:01:30]} Qd8 {[%emt 0:01:30]} 14. Nxd5 {[%emt 0:01:30]} Nxd5 {[%emt 0:00:00]} 15. Ba4+ {[%emt 0:00:30]} Bd7 {[%emt 0:00:00]} 16. Ne5 {[%emt 0:01:30]} b5 {[%emt 0:18:54]} 17. Bb3 {[%emt 0:00:30]} O-O {[%emt 0:01:20]} 18. Bxd5 {[%emt 0:00:30]} exd5 {[%emt 0:00:07]} 19. Qb3 {[%emt 0:00:00]} Be6 {[%emt 0:05:32]} 20. Qxb5 {[%emt 0:07:00]} Rb8 {[%emt 0:00:27]} 21. Qe2 {[%emt 0:00:30]} Qb6 {[%emt 0:00:17]} 22. b3 {[%emt 0:00:30]} Rbc8 {[%emt 0:01:54]} 23. Qe3 {[%emt 0:01:30]} Rfe8 {[%emt 0:01:14]} 24. Qd2 {[%emt 0:01:30]} Bf5 {[%emt 0:00:59]} 25. Rac1 {[%emt 0:08:30]} f6 {[%emt 0:00:54]} 26. Nc6 {[%emt 0:00:30]} Be6 {[%emt 0:00:30]} 27. Ne7+ {[%emt 0:00:30]} Rxe7 {[%emt 0:00:30]} 28. Rxc8+ {[%emt 0:00:30]} Bxc8 {[%emt 0:00:30]} 29. Rxe7 {[%emt 0:00:30]} Ba6 {[%emt 0:00:30]} 30. Qe3 {[%emt 0:00:30]} Bb5 {[%emt 0:01:11]} 31. Qe6+ {[%emt 0:00:30]} Qxe6 {[%emt 0:00:30]} 32. Rxe6 {[%emt 0:00:30]} Bd3 {[%emt 0:00:30]} 33. Rd6 {[%emt 0:00:30]} a5 {[%emt 0:00:30]} 34. Rxd5 {[%emt 0:00:30]} a4 {[%emt 0:00:41]} 35. bxa4 {[%emt 0:00:30]} Bc4 {[%emt 0:00:30]} 36. Rc5 {[%emt 0:00:30]} Ba6 {[%emt 0:00:00]} 37. a5 {[%emt 0:00:30]} Kf8 {[%emt 0:00:07]} 38. Rc6 {[%emt 0:00:30]} Bb7 {[%emt 0:00:30]} 39. Rb6 {[%emt 0:00:30]} Bd5 {[%emt 0:00:30]} 40. a6 {[%emt 0:00:30]} Ke7 {[%emt 0:00:30]} 41. a7 {[%emt 0:00:30]} Kd7 {[%emt 0:00:30]} 42. Rb8 {[%emt 0:00:30]} 1-0